Cogmind - Beta 13 @@@ ROGUE MODE // 2024.04.11 @ 23:18:44 Player: weezard Result: Destroyed by G-34 Mercenary with Small Laser Performance ------------- Evolutions (0) 0 Regions Visited (1) 200 Robots Destroyed (18) 90 Value Destroyed (327) 327 Prototype IDs (2) 40 Alien Tech Used (0) 0 Bonus (0) 0 TOTAL SCORE: 657 Bonus ------- None Cogmind --------- Core Integrity 0/250 Matter 165/300 Energy 45/100 System Corruption 1% Temperature Hot (214) Movement Core (250) Ox4 Location -10/Materials Parts ------- > --- POWER (1) -------- (None) > --- PROPULSION (2) --- (None) > --- UTILITY (2) ------ Medium Storage Unit > --- WEAPON (2) ------- Small Laser Beam Cannon > --- INVENTORY (10) --- Ion Engine Light Ion Engine Heat Sink Machine Analyzer Light Armor Plating Tractor Beam Recalibrator Mining Claw Peak State ------------ > --- POWER ------------ Ion Engine > --- PROPULSION ------- Wheel Compact Wheel > --- UTILITY ---------- Medium Storage Unit Sensor Array > --- WEAPON ----------- Assault Rifle Assault Rifle > --- INVENTORY -------- Ion Engine Light Ion Engine Heat Sink Machine Analyzer Light Armor Plating Tractor Beam Small Laser Mining Claw [Rating: 8] Favorites ----------- Power Ion Engine Engine Ion Engine Propulsion Wheel Wheel Wheel Utility Sensor Array Device Sensor Array Storage Medium Storage Unit Weapon Assault Rifle Energy Gun Small Laser Energy Cannon Beam Cannon Ballistic Gun Assault Rifle Slashing Weapon Mining Claw Build | -11 -10 ------- Run | Yrd Mat Slots Evolved . | . . Power . | . . Propulsion . | . . Utility . | . . Weapon . | . . Parts Attached 15 | 8 7 Power 2 | 1 1 Engine 2 | 1 1 Core . | . . Reactor . | . . Propulsion 4 | 3 1 Treads . | . . Leg . | . . Wheel 4 | 3 1 Hover . | . . Flight . | . . Utility 4 | 2 2 Device 2 | 1 1 Storage 2 | 1 1 Processor . | . . Hackware . | . . Protection . | . . Artifact . | . . Weapon 5 | 2 3 Energy Gun 1 | . 1 Energy Cannon 1 | . 1 Ballistic Gun 2 | 2 . Ballistic Cannon . | . . Launcher . | . . Special Weapon . | . . Impact Weapon . | . . Slashing Weapon 1 | . 1 Piercing Weapon . | . . Special Melee Weapon . | . . Unidentified Prototypes . | . . Parts Lost 7 | . 7 Power 1 | . 1 Propulsion 3 | . 3 Utility 1 | . 1 Weapon 2 | . 2 Highest Loss Streak 6 | . 6 To Critical Strikes . | . . Average Slot Usage (%) 97 | . 97 Engine 13 | . 13 Wheel 26 | . 26 Device 13 | . 13 Storage 14 | . 14 Ballistic Gun 26 | . 26 Naked Turns . | . . Heaviest Build 20 | 15 20 Greatest Support 26 | 26 26 Greatest Overweight (x) 1 | . 1 Average Overweight (x) . | . . Largest Inventory Capacity 10 | 8 10 Average Capacity 8 | 7 9 Most Carried 10 | 4 10 Average Carried 5 | 2 5 Final Capacity 10 | 8 10 Final Carried 8 | 4 8 Class Distribution -------------------- 100% | Mutant Dominant Class ---------------- Mutant | -10/Materials Resources | -11 -10 ----------- Run | Yrd Mat Matter Collected 477 | 234 243 Remotely . | . . Salvage Created 646 | 90 556 Parts 35 | 6 29 Haulers Intercepted 1 | . 1 Recyclers Shooed 1 | 1 . Parts Field Recycled . | . . Retrieved Matter . | . . Parts Self-Destructed . | . . Prevented . | . . Kills | -11 -10 ------- Run | Yrd Mat Combat Hostiles Destroyed 12 | . 12 Guns 10 | . 10 Cannons 2 | . 2 Classes Destroyed 7 | 2 5 Tunneler 1 | 1 . Hauler 1 | . 1 Recycler 2 | 1 1 Mechanic 1 | . 1 Watcher 1 | . 1 Swarmer 6 | . 6 Grunt 6 | . 6 Best Kill Streak 8 | 2 8 Combat Bots Only 4 | . 4 Max Kills in Single Turn 1 | 1 1 Gunslinging . | . . Exploded . | . . Melee . | . . Uniques/NPCs Destroyed . | . . Combat | -11 -10 -------- Run | Yrd Mat Hostile Shots Fired 80 | . 80 Missed 15 | . 15 Damage Taken 790 | . 790 Core 260 | . 260 Absorbed by Shields . | . . Core Remaining (%) 100 | 100 . Volleys Fired 60 | 4 56 Largest 2 | 2 2 Hottest 100 | 40 100 Shots Fired 114 | 8 106 Gun 105 | 8 97 Cannon 9 | . 9 Launcher . | . . Special . | . . Kinetic 99 | 8 91 Thermal 15 | . 15 Explosive . | . . Electromagnetic . | . . Robot Hit Streak 9 | 6 9 Robot Miss Streak 4 | 1 4 Penetration Max . | . . Secondary Targets 1 | . 1 Max Gunslinging Chain 1 | . 1 Shots Hit Robots 69 | 6 63 Core Hits 28 | 3 25 Critical Kills . | . . Critical Parts Destroyed . | . . Critical Strikes . | . . Melee Attacks . | . . Impact . | . . Slashing . | . . Piercing . | . . Sneak Attacks . | . . Combat Hostiles . | . . Follow-up Attacks . | . . Damage Inflicted 894 | 72 822 Guns 775 | 72 703 Cannons 104 | . 104 Explosions . | . . Melee . | . . Ramming 15 | . 15 Kinetic 728 | 72 656 Thermal 151 | . 151 Explosive . | . . Electromagnetic . | . . Impact . | . . Slashing . | . . Piercing . | . . Highest Corruption 1 | . 1 Average Corruption 1 | . 1 Corruption Purged . | . . Corruption Blocked . | . . Effects 2 | . 2 Energy Discharges 2 | . 2 Overload Shots . | . . Overflow Damage . | . . Projectiles . | . . Explosions . | . . Melee . | . . Knockbacks . | . . Impact . | . . Kinetic . | . . Secondary . | . . Self-Inflicted Damage 7 | . 7 Shots . | . . Rammed 1 | . 1 Targets Rammed 1 | . 1 Kicked . | . . Crushed . | . . Highest Temperature 208 | . 208 Average Temperature 81 | . 81 Received Heat Transfer 390 | . 390 Siege Activations . | . . Robots Corrupted . | . . Combat Hostiles . | . . Parts Fried . | . . Impact Corruptions . | . . Robots Melted . | . . Combat Hostiles . | . . Parts Melted 1 | . 1 Heat Transferred 322 | . 322 Parts Sabotaged . | . . Parts Stolen . | . . Parts Stripped . | . . Power Chain Reactions . | . . Alert | -11 -10 ------- Run | Yrd Mat Peak Influence 237 | 10 237 Initial 6 | . 6 Average 97 | 3 107 Maximum Alert Level 1 | . 1 Low Security (%) 82 | 100 80 Level 1 17 | . 19 Level 2 . | . . Level 3 . | . . Level 4 . | . . Level 5 . | . . High Security . | . . Max Security . | . . Squads Dispatched 3 | . 3 Investigation 2 | . 2 Extermination . | . . Reinforcement 1 | . 1 Assault . | . . Garrison . | . . Intercept . | . . Searches Triggered . | . . Construction Impeded . | . . Haulers Reinforced . | . . Active Scanning Responses . | . . Cargo Convoy Interrupts . | . . Stealth | -11 -10 --------- Run | Yrd Mat Distress Signals 2 | . 2 Communications Jammed . | . . Distress Signals . | . . Times Spotted 22 | . 22 Peak Tracking Total 6 | . 6 Tactical Retreats 1 | . 1 Traps | -11 -10 ------- Run | Yrd Mat Traps Triggered 2 | . 2 Indirectly . | . . Trap Hack Attempts . | . . Triggered . | . . Disarmed . | . . Reprogrammed . | . . Reused . | . . Traps Extracted . | . . Installed . | . . Triggered . | . . Machines | -11 -10 ---------- Run | Yrd Mat Machines Disabled . | . . Max in Single Turn . | . . Machines Repaired . | . . Machines Dismantled . | . . Machines Sabotaged . | . . Overloaded Fab Kills . | . . Hacking | -11 -10 --------- Run | Yrd Mat Machines Accessed 5 | . 5 Terminals 5 | . 5 Fabricators . | . . Repair Stations . | . . Recycling Units . | . . Scanalyzers . | . . Garrison Access . | . . Total Hacks 12 | . 12 Successful 7 | . 7 Failed 5 | . 5 Catastrophic . | . . Database Lockouts . | . . Manual . | . . Terminals 12 | . 12 Fabricators . | . . Repair Stations . | . . Recycling Units . | . . Scanalyzers . | . . Garrison Access . | . . Terminal Hacks 7 | . 7 Prototype ID Bank 1 | . 1 Branch Access Points 1 | . 1 Locate Traps 3 | . 3 Dispatch Records 1 | . 1 Transport Status 1 | . 1 Fabricator Hacks . | . . Repair Station Hacks . | . . Recycling Unit Hacks . | . . Scanalyzer . | . . Garrison Access Hacks . | . . Unauthorized Hacks . | . . Terminals . | . . Fabricators . | . . Repair Stations . | . . Recycling Units . | . . Scanalyzers . | . . Garrison Access . | . . Data Cores Recovered . | . . Used . | . . Hacking Detections 5 | . 5 Full Trace Events 1 | . 1 Feedback Events . | . . Feedback Blocked . | . . Robot Schematics Acquired . | . . Robots Built . | . . Authchips . | . . Time . | . . Total Robot Build Rating . | . . Part Schematics Acquired . | . . Parts Built . | . . Authchips . | . . Time . | . . Total Part Build Rating . | . . Parts Repaired . | . . Time . | . . Parts Recycled . | . . Recycled Matter . | . . Retrieved Matter . | . . Retrieved Components . | . . Parts Scanalyzed . | . . Part Schematics Acquired . | . . Parts Damaged . | . . Bothacking | -11 -10 ------------ Run | Yrd Mat Used RIF Installer . | . . Robots Hacked . | . . Non-combat . | . . Combat . | . . Robot Hacks Applied . | . . Relay Couplers Released . | . . Fabnet Peak Effective % . | . . Robots Rewired . | . . Allies Hacked . | . . Hacks Repelled . | . . Allies | -11 -10 -------- Run | Yrd Mat Total Allies . | . . Largest Group . | . . Highest-Rated Group . | . . Highest-Rated Ally . | . . Total Orders . | . . Ally Attacks . | . . Total Damage . | . . Kills . | . . Allies Corrupted . | . . Allies Melted . | . . Intel | -11 -10 ------- Run | Yrd Mat Robot Analysis Total . | . . Derelict Logs Recovered . | . . Drone Launches . | . . Drone Recoveries . | . . Exploration | -11 -10 ------------- Run | Yrd Mat Turns Passed 767 | 73 694 Spaces Moved 521 | 52 469 Core 1 | 1 . Treads . | . . Legs . | . . Wheels 520 | 51 469 Hover . | . . Flight . | . . Fastest Speed 50 | 50 80 Average Speed 82 | 85 82 Slowest Speed 100 | 90 100 Overloaded Moves . | . . Propulsion Burnouts . | . . Robots Hopped . | . . Cave-ins Triggered . | . . Exploration Rate (%) 33 | 3 64 Regions Visited 1 Branch Regions . Pre-discovered Areas . | . . Known Exits Taken . | . . Unknown Exits Taken 1 | 1 . Scrap Searched . | . . Spaces Dug . | . . Terrain Destroyed . | . . Melee . | . . Projectile . | . . AOE . | . . Terrain Rammed . | . . Walls Destroyed . | . . Machines Disabled . | . . Actions | -11 -10 --------- Run | Yrd Mat Total 739 | 68 671 Wait 128 | . 128 Move 520 | 51 469 Hop . | . . Pick Up 12 | 5 7 Fast Attach 7 | 6 1 Attach 4 | 1 3 Detach . | . . Swap 4 | 1 3 Drop 3 | . 3 Fire 60 | 4 56 Melee . | . . Ram 1 | . 1 Kick . | . . Crush . | . . Escape Stasis . | . . Rewire . | . . Trap . | . . Miscellaneous . | . . Route ------- -11/Scrapyard -10/Materials (discovered 4 exits: [*Mat x2] / *Min x2) History --------- Turn | Location | Event 18 | -11/Scrapyard | Discovered new exit (range 16) 74 | -11/Scrapyard | Entered Materials 312 | -10/Materials | Build established: Mutant 339 | -10/Materials | Discovered new exit (range 10) 364 | -10/Materials | Discovered new exit (range 13) 366 | -10/Materials | Identified exit to Mines 579 | -10/Materials | Discovered new exit (range 8) 739 | -10/Materials | Core integrity fell below 50% 757 | -10/Materials | Core integrity fell below 20% 768 | -10/Materials | Destroyed by G-34 Mercenary with Small Laser Last Messages --------------- 00719_ K-01 Serf cleans the Repair Station. 00720_ System corrupted: Energy discharge (-65). 00720_ G-34 Mercenary destroyed. 00720_ Switching to secondary target: G-34 Mercenary. 00721_ Acquired 37 matter. 00724_ U-05 Engineer lays Concrete. 00726_ Wheel destroyed. 00727_ U-05 Engineer lays Concrete. 00730_ Assault Rifle destroyed. 00735_ Critical hit (Burn: +37). 00737_ Assault Rifle destroyed. 00738_ U-05 Engineer lays Concrete. 00739_ Sensor Array destroyed. 00743_ Ion Engine destroyed. 00743_ G-34 Mercenary destroyed. 00745_ Acquired 46 matter. 00755_ R-06 Scavenger collects Aluminum Leg. 00758_ Com. Wheel destroyed. 00763_ Imp. Heat Sink melted. 00763_ G-47 Trooper destroyed. Map ----- +----------------------------------------------------+ | | | | | | | | | | | | | | | | | | | | | ????????????????????????????????????????########?? | | ????????????????????????????????????????# #?# | | ???????????????????????????????????######! "T" ### | | ???????????????????????????????????# # """ ##! | | ???????????????????????????????????# #[ ??# | | ???????????????????????????????????# ###+##### | | ???????????????????????????????????# # | | ???????????????????????????????????# # | | ???????????????????????????????????# # ### | | ???????????????????????????????????# # #?? | | ??????????????#####+############???# + #?? | | ??????????????? + """"" +???# # #?? | | ???????????????? # g """"" # ??###### #?? | | ????????????????# # g """"" # ??????#=== #?? | | ????????????????# # # ?????#= = #?? | | ????????????????# # r @ # #?????#!= #?? | | ??????? ???????# ###+####### #?????# #?? | | ?????? ####### ###%#?????# #?????##+#### #?? | | ??????# ==#?????# #?????# # #?? | | ??????# *####### #?????# # #?? | | ??????# #?????# # ### | | ??????# #?????# # | | ??????# """" #?????# # ### | | ??????# " """"" ""R" ####### # #?? | | ???????????""""""" "" " ## # #?? | | ????????????" """ ## # #?? | | ????????? ## # #?? | | ??????# ## # #?? | | ??????# #######+## ## # #?? | | ??????# ##### ##?????????## ### ## # #?? | | ??????? ??????# ????????????# #?# ##/##### #?? | | ??????????????#?????????????# #?#[** ##### #?? | | ????????????????????????????# #?#==[= #?? | | ?????????????????????????#### ####+###########?? | | ?????????????????????????#" #==%%![ #### | | ?????????????????????????#"" # *= # " | | ?????????????????????????#|| # """ """ + | | ????????? #??????????????#"" > # """ """ # | | ????????? #??????????????#!! # """ """ # | | ??####??? #??????????????#"" # # | +----------------------------------------------------+ Best States ------------- Heat Dissipation 25 Energy Generation 10 Energy Capacity 250 Matter Stores 290 Matter Capacity 300 Sight Range 16 Robot Scan Range 14 Terrain Scan Density 10 Evasion (%) 44 Item Schematics ----------------- None Robot Schematics ------------------ None Fabricated ------------ Nothing Alien Tech Used ----------------- None Achievements -------------- None Challenges ------------ None Game ------ Seed GuidanceShadingCompactor Manual? 0 Play Time 00:08:52 Cumulative 22.1 hours Start 2024.04.11 @ 23:11:34 End 2024.04.11 @ 23:18:44 Sessions 1 Manual Loads 0 Difficulty Rogue Special Mode None Game No. 18 Rogue 18 Adventurer 0 Explorer 0 Win Type - Total 0 Types 0/0/0/0/0/0/0/0/0 Lore% 14 Gallery% 25 Achievement% 23 Wizard Run 0 Options --------- Layout 1 ASCII 0 Keyboard 0 Movement Numpad Keybinds 0 Fullscreen 2 Font 32/Cog Map View 77x35 Zoom Use 0% Tactical HUD 1 Map Filters NONE Filters NONE Steam 0 RUN: 76fdd8c2-3b79-4393-8d92-ba5140da0c25